[Event "*** Titled Tuesday Blitz"]
[Site "Chess.com"]
[Date "2020.10.20"]
[Round "1"]
[White "lacafi"]
[Black "Sanyura"]
[Result "0-1"]
[WhiteElo "2126"]
[BlackElo "2505"]
[TimeControl "180+1"]
[EndTime "10:05:06 PDT"]
[Termination "Sanyura won by resignation"]

1. d4 {[%clk 0:03:00.9]} 1... d5 {[%clk 0:02:55.7]} 2. Nf3 {[%clk 0:03:00.1]}
2... Nf6 {[%clk 0:02:54.8]} 3. e3 {[%clk 0:03:00.1]} 3... c5 {[%clk 0:02:54.1]}
4. c3 {[%clk 0:02:59.8]} 4... Nc6 {[%clk 0:02:54.5]} 5. Nbd2 {[%clk 0:02:58.7]}
5... e6 {[%clk 0:02:48.3]} 6. Bd3 {[%clk 0:02:57.6]} 6... Bd6 {[%clk 0:02:48.2]}
7. Qe2 {[%clk 0:02:58]} 7... O-O {[%clk 0:02:47.5]} 8. dxc5 {[%clk 0:02:58.6]}
8... Bxc5 {[%clk 0:02:47.6]} 9. e4 {[%clk 0:02:59.5]} 9... e5 {[%clk 0:02:40.8]}
10. h3 {[%clk 0:02:52.4]} 10... Kh8 {[%clk 0:02:33.7]} 11. O-O {[%clk 0:02:42]}
11... Nh5 {[%clk 0:02:32]} 12. Nb3 {[%clk 0:01:56.8]} 12... Bb6 {[%clk
0:02:22.4]} 13. exd5 {[%clk 0:01:22.8]} 13... Ng3 {[%clk 0:02:16.2]} 14. Qc2
{[%clk 0:01:22.4]} 14... Qxd5 {[%clk 0:01:55.3]} 15. Re1 {[%clk 0:01:16.3]}
15... Bxh3 {[%clk 0:01:45.3]} 16. c4 {[%clk 0:01:08]} 16... Qd8 {[%clk
0:01:37.4]} 17. gxh3 {[%clk 0:00:43.5]} 17... Nb4 {[%clk 0:01:35.8]} 18. Qc3
{[%clk 0:00:33.4]} 18... Nxd3 {[%clk 0:01:35.4]} 19. c5 {[%clk 0:00:21.2]} 19...
Nxe1 {[%clk 0:01:33.7]} 20. Nxe1 {[%clk 0:00:18.1]} 20... Ne2+ {[%clk
0:01:33.1]} 0-1

[Event "*** Titled Tuesday Blitz"]
[Site "Chess.com"]
[Date "2020.10.20"]
[Round "1"]
[White "Markov_Mikhail"]
[Black "gliglu"]
[Result "1-0"]
[WhiteElo "2672"]
[BlackElo "2333"]
[TimeControl "180+1"]
[EndTime "10:05:13 PDT"]
[Termination "Markov_Mikhail won by resignation"]

1. c4 {[%clk 0:03:00.9]} 1... Nf6 {[%clk 0:02:59.5]} 2. Nf3 {[%clk 0:03:00.8]}
2... g6 {[%clk 0:02:58.6]} 3. g3 {[%clk 0:03:00.8]} 3... Bg7 {[%clk 0:02:58.6]}
4. Bg2 {[%clk 0:03:01.2]} 4... O-O {[%clk 0:02:58.6]} 5. O-O {[%clk 0:03:01.8]}
5... d6 {[%clk 0:02:58.8]} 6. Nc3 {[%clk 0:03:02.3]} 6... Nc6 {[%clk 0:02:58]}
7. d4 {[%clk 0:03:03.2]} 7... Bg4 {[%clk 0:02:56.8]} 8. h3 {[%clk 0:02:53.9]}
8... Bxf3 {[%clk 0:02:55.9]} 9. Bxf3 {[%clk 0:02:53.7]} 9... Nd7 {[%clk
0:02:55.8]} 10. e3 {[%clk 0:02:41.6]} 10... e5 {[%clk 0:02:54.8]} 11. d5 {[%clk
0:02:41.6]} 11... Ne7 {[%clk 0:02:54.7]} 12. e4 {[%clk 0:02:42.1]} 12... f5
{[%clk 0:02:54.1]} 13. b4 {[%clk 0:02:30.1]} 13... Nf6 {[%clk 0:02:52.1]} 14. c5
{[%clk 0:02:22.3]} 14... Qd7 {[%clk 0:02:48.9]} 15. Bg2 {[%clk 0:02:21.2]} 15...
fxe4 {[%clk 0:02:46.8]} 16. Bg5 {[%clk 0:02:18.7]} 16... Nf5 {[%clk 0:02:42.6]}
17. Bxf6 {[%clk 0:02:10.3]} 17... Bxf6 {[%clk 0:02:42.3]} 18. Nxe4 {[%clk
0:02:11]} 18... Nd4 {[%clk 0:02:42]} 19. cxd6 {[%clk 0:02:09.7]} 19... cxd6
{[%clk 0:02:41.5]} 20. a4 {[%clk 0:02:07.3]} 20... Rac8 {[%clk 0:02:39.3]} 21.
Qd3 {[%clk 0:02:05.4]} 21... Bg7 {[%clk 0:02:37.9]} 22. b5 {[%clk 0:02:01.8]}
22... Rc7 {[%clk 0:02:30.6]} 23. Ra2 {[%clk 0:01:58.5]} 23... Rfc8 {[%clk
0:02:29.8]} 24. Qa3 {[%clk 0:01:58.6]} 24... Rd8 {[%clk 0:02:24.7]} 25. Rd2
{[%clk 0:01:46.9]} 25... Kh8 {[%clk 0:02:22.9]} 26. Kh2 {[%clk 0:01:42.9]} 26...
Rc4 {[%clk 0:02:21.8]} 27. f4 {[%clk 0:01:41.7]} 27... a6 {[%clk 0:02:10.8]} 28.
bxa6 {[%clk 0:01:30.1]} 28... Rxa4 {[%clk 0:02:09.5]} 29. Qe3 {[%clk 0:01:26.2]}
29... Rxa6 {[%clk 0:02:06.3]} 30. Ng5 {[%clk 0:01:26.7]} 30... Rf8 {[%clk
0:02:01.1]} 31. fxe5 {[%clk 0:01:25.3]} 31... Rxf1 {[%clk 0:01:59.7]} 32. e6
{[%clk 0:01:23.5]} 32... Qb5 {[%clk 0:01:54.4]} 33. e7 {[%clk 0:01:22.2]} 33...
Ra8 {[%clk 0:01:53.9]} 34. Bxf1 {[%clk 0:01:22.5]} 34... Qe8 {[%clk 0:01:51.9]}
35. Rxd4 {[%clk 0:01:19.9]} 35... h6 {[%clk 0:01:49.5]} 36. Rh4 {[%clk
0:01:15.8]} 36... Ra2+ {[%clk 0:01:47.3]} 37. Bg2 {[%clk 0:01:16.2]} 37... b5
{[%clk 0:01:35]} 38. Qe6 {[%clk 0:01:15.6]} 38... b4 {[%clk 0:01:26.2]} 39. Nf7+
{[%clk 0:01:15.6]} 39... Kh7 {[%clk 0:01:25.9]} 40. Nxd6 {[%clk 0:01:16.1]} 1-0

[Event "*** Titled Tuesday Blitz"]
[Site "Chess.com"]
[Date "2020.10.20"]
[Round "1"]
[White "LyonBeast"]
[Black "kleopl"]
[Result "1-0"]
[WhiteElo "3024"]
[BlackElo "2453"]
[TimeControl "180+1"]
[EndTime "10:05:16 PDT"]
[Termination "LyonBeast won by resignation"]

1. Nf3 {[%clk 0:02:54]} 1... f5 {[%clk 0:02:51.4]} 2. b3 {[%clk 0:02:48.1]} 2...
Nf6 {[%clk 0:02:51]} 3. Bb2 {[%clk 0:02:48]} 3... d6 {[%clk 0:02:49.7]} 4. e3
{[%clk 0:02:47.5]} 4... e5 {[%clk 0:02:49.1]} 5. d4 {[%clk 0:02:48]} 5... e4
{[%clk 0:02:47.5]} 6. Ng1 {[%clk 0:02:46.2]} 6... d5 {[%clk 0:02:41.6]} 7. h4
{[%clk 0:02:44.3]} 7... c6 {[%clk 0:02:40.9]} 8. Nh3 {[%clk 0:02:44.4]} 8... Bd6
{[%clk 0:02:39.6]} 9. g3 {[%clk 0:02:43.8]} 9... Be6 {[%clk 0:02:39.4]} 10. c4
{[%clk 0:02:43.8]} 10... Nbd7 {[%clk 0:02:35.6]} 11. c5 {[%clk 0:02:39.5]} 11...
Bc7 {[%clk 0:02:34.8]} 12. b4 {[%clk 0:02:39.8]} 12... b5 {[%clk 0:02:30.5]} 13.
a4 {[%clk 0:02:39.1]} 13... a6 {[%clk 0:02:27.9]} 14. Be2 {[%clk 0:02:38.3]}
14... Rb8 {[%clk 0:02:25.8]} 15. Nc3 {[%clk 0:02:33.6]} 15... O-O {[%clk
0:02:21.5]} 16. Ng5 {[%clk 0:02:33.2]} 16... Qe7 {[%clk 0:02:19.4]} 17. axb5
{[%clk 0:02:32.7]} 17... axb5 {[%clk 0:02:17.4]} 18. Ra6 {[%clk 0:02:33]} 18...
h6 {[%clk 0:02:00.1]} 19. Rxc6 {[%clk 0:02:26.2]} 19... hxg5 {[%clk 0:01:56.3]}
20. Rxc7 {[%clk 0:02:26.1]} 20... gxh4 {[%clk 0:01:54.2]} 21. Rxh4 {[%clk
0:02:27]} 21... Qd8 {[%clk 0:01:16.9]} 22. Rc6 {[%clk 0:02:20]} 22... Bf7 {[%clk
0:01:15.1]} 23. Nxb5 {[%clk 0:02:18.5]} 23... Ra8 {[%clk 0:01:07.5]} 24. Nd6
{[%clk 0:02:04.3]} 24... Bg6 {[%clk 0:01:04.3]} 25. Qb3 {[%clk 0:02:02.9]} 25...
Nb8 {[%clk 0:00:52.4]} 26. Rc8 {[%clk 0:01:55.1]} 26... Qd7 {[%clk 0:00:52.7]}
27. Rxf8+ {[%clk 0:01:54.8]} 27... Kxf8 {[%clk 0:00:53.6]} 28. Rh8+ {[%clk
0:01:55.1]} 28... Ke7 {[%clk 0:00:52]} 29. Nc8+ {[%clk 0:01:55]} 29... Kf7
{[%clk 0:00:50.7]} 30. Nb6 {[%clk 0:01:55.6]} 30... Qb7 {[%clk 0:00:48.1]} 31.
Nxa8 {[%clk 0:01:55.3]} 31... Qxa8 {[%clk 0:00:49]} 32. c6 {[%clk 0:01:55.7]}
32... Qa7 {[%clk 0:00:32]} 33. b5 {[%clk 0:01:56]} 33... Qb6 {[%clk 0:00:31]}
34. Qa3 {[%clk 0:01:51.4]} 1-0

[Event "*** Titled Tuesday Blitz"]
[Site "Chess.com"]
[Date "2020.10.20"]
[Round "1"]
[White "YIYUKI"]
[Black "Moultino06"]
[Result "0-1"]
[WhiteElo "2282"]
[BlackElo "2611"]
[TimeControl "180+1"]
[EndTime "10:05:18 PDT"]
[Termination "Moultino06 won by resignation"]

1. e4 {[%clk 0:02:58.6]} 1... c5 {[%clk 0:02:59.4]} 2. Nf3 {[%clk 0:02:57.5]}
2... d6 {[%clk 0:02:59.5]} 3. c3 {[%clk 0:02:53.6]} 3... Nf6 {[%clk 0:02:57]} 4.
h3 {[%clk 0:02:53.1]} 4... Bd7 {[%clk 0:02:51.6]} 5. Bd3 {[%clk 0:02:52.1]} 5...
g6 {[%clk 0:02:49.8]} 6. O-O {[%clk 0:02:51.4]} 6... Bg7 {[%clk 0:02:49.6]} 7.
Bc2 {[%clk 0:02:51.3]} 7... O-O {[%clk 0:02:50]} 8. d4 {[%clk 0:02:50.7]} 8...
Nc6 {[%clk 0:02:42.8]} 9. d5 {[%clk 0:02:41.1]} 9... Nb8 {[%clk 0:02:42.7]} 10.
a4 {[%clk 0:02:39.7]} 10... Na6 {[%clk 0:02:36.4]} 11. Na3 {[%clk 0:02:38.8]}
11... Nc7 {[%clk 0:02:35.8]} 12. Nc4 {[%clk 0:02:38.1]} 12... b6 {[%clk
0:02:34.9]} 13. Bf4 {[%clk 0:02:34.9]} 13... Rb8 {[%clk 0:02:31.1]} 14. Re1
{[%clk 0:02:33.9]} 14... a6 {[%clk 0:02:29.5]} 15. e5 {[%clk 0:02:33.6]} 15...
Nfxd5 {[%clk 0:02:23.3]} 16. exd6 {[%clk 0:02:30.4]} 16... exd6 {[%clk
0:01:57.3]} 17. Bxd6 {[%clk 0:02:13.3]} 17... Re8 {[%clk 0:01:57.4]} 18. Rxe8+
{[%clk 0:02:12.7]} 18... Bxe8 {[%clk 0:01:51.5]} 19. Bxc7 {[%clk 0:02:10.4]}
19... Nxc7 {[%clk 0:01:50.9]} 20. Qxd8 {[%clk 0:02:09.4]} 20... Rxd8 {[%clk
0:01:51]} 21. Nxb6 {[%clk 0:02:09.7]} 21... Rb8 {[%clk 0:01:43.8]} 22. a5 {[%clk
0:02:09.3]} 22... Bc6 {[%clk 0:01:40.6]} 23. Ng5 {[%clk 0:01:56.5]} 23... Nd5
{[%clk 0:01:32.8]} 24. Bb3 {[%clk 0:01:37.1]} 24... Nxb6 {[%clk 0:01:26.1]} 25.
axb6 {[%clk 0:01:34.6]} 25... Rxb6 {[%clk 0:01:21.9]} 26. Bxf7+ {[%clk
0:01:33.8]} 26... Kf8 {[%clk 0:01:11.3]} 27. Bc4 {[%clk 0:01:33.1]} 27... Bh6
{[%clk 0:01:02.6]} 28. Ne6+ {[%clk 0:01:26]} 28... Ke7 {[%clk 0:01:01.5]} 29.
Nxc5 {[%clk 0:01:25.6]} 29... Rxb2 {[%clk 0:00:58.9]} 30. Rxa6 {[%clk
0:01:22.6]} 30... Rb1+ {[%clk 0:00:56.5]} 31. Kh2 {[%clk 0:01:21.3]} 31... Bf4+
{[%clk 0:00:56.5]} 0-1

[Event "*** Titled Tuesday Blitz"]
[Site "Chess.com"]
[Date "2020.10.20"]
[Round "1"]
[White "Oneofmyturns"]
[Black "AttractiveMustard"]
[Result "1-0"]
[WhiteElo "2706"]
[BlackElo "2351"]
[TimeControl "180+1"]
[EndTime "10:05:23 PDT"]
[Termination "Oneofmyturns won by resignation"]

1. d4 {[%clk 0:03:00.8]} 1... Nf6 {[%clk 0:02:52.2]} 2. c4 {[%clk 0:03:00.8]}
2... g6 {[%clk 0:02:50.4]} 3. Nc3 {[%clk 0:03:01.1]} 3... Bg7 {[%clk 0:02:49]}
4. e4 {[%clk 0:03:01.1]} 4... d6 {[%clk 0:02:48.8]} 5. h3 {[%clk 0:03:01]} 5...
O-O {[%clk 0:02:48.5]} 6. Be3 {[%clk 0:03:01.5]} 6... e5 {[%clk 0:02:46.4]} 7.
d5 {[%clk 0:03:01.6]} 7... a5 {[%clk 0:02:46.9]} 8. g4 {[%clk 0:03:01.5]} 8...
Na6 {[%clk 0:02:46.5]} 9. Nge2 {[%clk 0:03:02]} 9... Nd7 {[%clk 0:02:32.3]} 10.
Ng3 {[%clk 0:03:01.5]} 10... Bf6 {[%clk 0:02:25.2]} 11. h4 {[%clk 0:02:53.8]}
11... Bxh4 {[%clk 0:02:23.1]} 12. Qd2 {[%clk 0:02:54]} 12... Ndc5 {[%clk
0:02:14.7]} 13. Be2 {[%clk 0:02:50.4]} 13... Bd7 {[%clk 0:01:55.3]} 14. O-O-O
{[%clk 0:02:35.1]} 14... a4 {[%clk 0:01:49.9]} 15. Kb1 {[%clk 0:02:34.3]} 15...
Nb4 {[%clk 0:01:37.9]} 16. Bxc5 {[%clk 0:02:33]} 16... dxc5 {[%clk 0:01:37.3]}
17. Qh6 {[%clk 0:02:32.9]} 17... Qg5 {[%clk 0:00:53]} 18. Qxh4 {[%clk
0:02:30.5]} 18... Qxh4 {[%clk 0:00:51.9]} 19. Rxh4 {[%clk 0:02:31.4]} 19... Kg7
{[%clk 0:00:46.6]} 20. Rdh1 {[%clk 0:02:16.4]} 20... Rh8 {[%clk 0:00:45.8]} 21.
a3 {[%clk 0:02:15.3]} 21... Na6 {[%clk 0:00:44.3]} 22. Bd1 {[%clk 0:02:15.2]}
22... Nb8 {[%clk 0:00:40.1]} 23. g5 {[%clk 0:02:13.1]} 23... Ra6 {[%clk
0:00:33]} 24. Nge2 {[%clk 0:01:58.4]} 24... c6 {[%clk 0:00:30.1]} 25. Nc1 {[%clk
0:01:57.4]} 25... cxd5 {[%clk 0:00:26.7]} 26. exd5 {[%clk 0:01:52.4]} 26... Ra5
{[%clk 0:00:17.8]} 27. Bc2 {[%clk 0:01:48.7]} 27... Na6 {[%clk 0:00:17.4]} 28.
Nd3 {[%clk 0:01:46.4]} 28... f6 {[%clk 0:00:15.6]} 29. gxf6+ {[%clk 0:01:45.5]}
29... Kxf6 {[%clk 0:00:16.5]} 30. Rxh7 {[%clk 0:01:45.7]} 30... Rxh7 {[%clk
0:00:17.4]} 31. Rxh7 {[%clk 0:01:46]} 31... Bf5 {[%clk 0:00:18.1]} 32. Rxb7
{[%clk 0:01:43.3]} 1-0

[Event "*** Titled Tuesday Blitz"]
[Site "Chess.com"]
[Date "2020.10.20"]
[Round "1"]
[White "tdf98pantani"]
[Black "Flopezin"]
[Result "1-0"]
[WhiteElo "2728"]
[BlackElo "2364"]
[TimeControl "180+1"]
[EndTime "10:05:26 PDT"]
[Termination "tdf98pantani won by checkmate"]

1. d4 {[%clk 0:02:57]} 1... Nf6 {[%clk 0:02:59.3]} 2. c4 {[%clk 0:02:57]} 2...
e6 {[%clk 0:02:59.2]} 3. Nf3 {[%clk 0:02:56]} 3... c5 {[%clk 0:02:58.2]} 4. d5
{[%clk 0:02:55]} 4... d6 {[%clk 0:02:58.8]} 5. Nc3 {[%clk 0:02:54.4]} 5... exd5
{[%clk 0:02:59.4]} 6. cxd5 {[%clk 0:02:54.3]} 6... g6 {[%clk 0:02:59.9]} 7. Bf4
{[%clk 0:02:54]} 7... a6 {[%clk 0:02:57.8]} 8. a4 {[%clk 0:02:47]} 8... Bg7
{[%clk 0:02:50.2]} 9. e3 {[%clk 0:02:46.7]} 9... O-O {[%clk 0:02:38.7]} 10. h3
{[%clk 0:02:45.8]} 10... Ne8 {[%clk 0:02:32.1]} 11. Be2 {[%clk 0:02:45.7]} 11...
Nd7 {[%clk 0:02:30.5]} 12. O-O {[%clk 0:02:45.3]} 12... Qe7 {[%clk 0:02:31.1]}
13. Qc2 {[%clk 0:02:43.3]} 13... Ne5 {[%clk 0:02:30.5]} 14. Nd2 {[%clk
0:02:42.9]} 14... Bd7 {[%clk 0:02:21]} 15. Rab1 {[%clk 0:02:38.2]} 15... Rc8
{[%clk 0:01:44.6]} 16. a5 {[%clk 0:02:33.7]} 16... Nc7 {[%clk 0:01:44]} 17. Bxe5
{[%clk 0:02:32.5]} 17... Bxe5 {[%clk 0:01:43.6]} 18. Nc4 {[%clk 0:02:33]} 18...
Bb5 {[%clk 0:01:41.3]} 19. Nb6 {[%clk 0:02:23.1]} 19... Rce8 {[%clk 0:01:35.8]}
20. Nxb5 {[%clk 0:02:22.6]} 20... Nxb5 {[%clk 0:01:34.6]} 21. Nc4 {[%clk
0:02:13.9]} 21... Bg7 {[%clk 0:01:32.1]} 22. Rbe1 {[%clk 0:02:12.5]} 22... f5
{[%clk 0:01:32]} 23. Bd3 {[%clk 0:01:55.7]} 23... Nc7 {[%clk 0:01:31.3]} 24. Nb6
{[%clk 0:01:55]} 24... Rd8 {[%clk 0:01:31.1]} 25. f4 {[%clk 0:01:51.7]} 25...
Na8 {[%clk 0:01:29.3]} 26. Nxa8 {[%clk 0:01:48.8]} 26... Rxa8 {[%clk 0:01:30.2]}
27. e4 {[%clk 0:01:47.4]} 27... fxe4 {[%clk 0:01:29.5]} 28. Rxe4 {[%clk
0:01:47.5]} 28... Qf6 {[%clk 0:01:30.2]} 29. b3 {[%clk 0:01:41.1]} 29... Rae8
{[%clk 0:01:30.4]} 30. Rfe1 {[%clk 0:01:34.7]} 30... Kf7 {[%clk 0:01:30.6]} 31.
Bc4 {[%clk 0:01:26.2]} 31... Rxe4 {[%clk 0:01:29]} 32. Rxe4 {[%clk 0:01:20.6]}
32... Qa1+ {[%clk 0:01:28.5]} 33. Kh2 {[%clk 0:01:20.3]} 33... Bd4 {[%clk
0:01:28.6]} 34. Qe2 {[%clk 0:01:17.2]} 34... Bf6 {[%clk 0:01:16.7]} 35. Re6
{[%clk 0:01:12.3]} 35... Qxa5 {[%clk 0:01:16.8]} 36. Rxd6 {[%clk 0:01:10.2]}
36... Re8 {[%clk 0:01:17.2]} 37. Rxf6+ {[%clk 0:01:08.1]} 37... Kxf6 {[%clk
0:01:14.7]} 38. Qxe8 {[%clk 0:01:08]} 38... Qc7 {[%clk 0:01:13.4]} 39. d6 {[%clk
0:01:05.1]} 39... Qxd6 {[%clk 0:01:13.4]} 40. Qf7# {[%clk 0:01:05.5]} 1-0

[Event "*** Titled Tuesday Blitz"]
[Site "Chess.com"]
[Date "2020.10.20"]
[Round "1"]
[White "Semetey"]
[Black "coco_crc"]
[Result "1-0"]
[WhiteElo "2525"]
[BlackElo "2183"]
[TimeControl "180+1"]
[EndTime "10:05:27 PDT"]
[Termination "Semetey won by resignation"]

1. d4 {[%clk 0:02:58.6]} 1... d5 {[%clk 0:02:59.2]} 2. c4 {[%clk 0:02:59.5]}
2... e6 {[%clk 0:02:58.8]} 3. Nc3 {[%clk 0:02:59.6]} 3... Be7 {[%clk 0:02:57.6]}
4. cxd5 {[%clk 0:02:59.5]} 4... exd5 {[%clk 0:02:58.5]} 5. Bf4 {[%clk 0:03:00]}
5... Nf6 {[%clk 0:02:57.1]} 6. e3 {[%clk 0:02:59.6]} 6... c6 {[%clk 0:02:56.2]}
7. Bd3 {[%clk 0:02:58.4]} 7... O-O {[%clk 0:02:54.8]} 8. Qc2 {[%clk 0:02:42.7]}
8... Nbd7 {[%clk 0:02:51.9]} 9. Nf3 {[%clk 0:02:41.9]} 9... Re8 {[%clk
0:02:48.2]} 10. h3 {[%clk 0:02:38.8]} 10... Nf8 {[%clk 0:02:47.6]} 11. g4 {[%clk
0:02:36]} 11... Qa5 {[%clk 0:02:34.2]} 12. O-O-O {[%clk 0:02:35]} 12... b5
{[%clk 0:02:29.5]} 13. Kb1 {[%clk 0:02:35]} 13... b4 {[%clk 0:02:19.1]} 14. Ne2
{[%clk 0:02:34.6]} 14... Ba6 {[%clk 0:02:09.6]} 15. Ne5 {[%clk 0:02:13.1]} 15...
Bxd3 {[%clk 0:01:56.3]} 16. Qxd3 {[%clk 0:02:13.1]} 16... Rac8 {[%clk
0:01:51.8]} 17. Ng3 {[%clk 0:02:07]} 17... Ne6 {[%clk 0:01:42.8]} 18. g5 {[%clk
0:02:05.2]} 18... Nxf4 {[%clk 0:01:42.3]} 19. exf4 {[%clk 0:02:06.1]} 19... Ne4
{[%clk 0:01:33.1]} 20. Nxe4 {[%clk 0:02:06.3]} 20... dxe4 {[%clk 0:01:33.7]} 21.
Qxe4 {[%clk 0:02:07.2]} 21... c5 {[%clk 0:01:29.9]} 22. Qd5 {[%clk 0:01:53.4]}
22... Rf8 {[%clk 0:01:25.6]} 23. g6 {[%clk 0:01:26.9]} 23... hxg6 {[%clk
0:01:22]} 24. Nxg6 {[%clk 0:01:27.8]} 24... Rfe8 {[%clk 0:01:18]} 25. Ne5 {[%clk
0:01:02.4]} 25... Rf8 {[%clk 0:01:17.1]} 26. Rhg1 {[%clk 0:01:02.4]} 26... Bf6
{[%clk 0:01:07.7]} 27. Nd7 {[%clk 0:01:01.5]} 27... Bxd4 {[%clk 0:01:07.6]} 28.
Rxd4 {[%clk 0:01:00]} 28... Qd8 {[%clk 0:00:57.3]} 1-0

[Event "*** Titled Tuesday Blitz"]
[Site "Chess.com"]
[Date "2020.10.20"]
[Round "1"]
[White "TokChess"]
[Black "Sychev_Klementy"]
[Result "0-1"]
[WhiteElo "2431"]
[BlackElo "2875"]
[TimeControl "180+1"]
[EndTime "10:05:28 PDT"]
[Termination "Sychev_Klementy won by resignation"]

1. Nf3 {[%clk 0:02:56.3]} 1... Nf6 {[%clk 0:02:59.3]} 2. g3 {[%clk 0:02:56.4]}
2... d5 {[%clk 0:02:55.1]} 3. Bg2 {[%clk 0:02:56.8]} 3... e6 {[%clk 0:02:45.8]}
4. O-O {[%clk 0:02:56.6]} 4... Be7 {[%clk 0:02:46.3]} 5. d4 {[%clk 0:02:57.1]}
5... O-O {[%clk 0:02:46.6]} 6. c4 {[%clk 0:02:57.4]} 6... dxc4 {[%clk
0:02:47.2]} 7. Qc2 {[%clk 0:02:57.7]} 7... a6 {[%clk 0:02:46.1]} 8. a4 {[%clk
0:02:57.8]} 8... Bd7 {[%clk 0:02:43.8]} 9. Bg5 {[%clk 0:02:56.1]} 9... Bc6
{[%clk 0:02:43.3]} 10. Qxc4 {[%clk 0:02:54.5]} 10... Bd5 {[%clk 0:02:42.6]} 11.
Qc2 {[%clk 0:02:54]} 11... Be4 {[%clk 0:02:42.5]} 12. Qd2 {[%clk 0:02:43.1]}
12... Nc6 {[%clk 0:02:41.5]} 13. Nc3 {[%clk 0:02:41.5]} 13... Bg6 {[%clk
0:02:04.8]} 14. Rfd1 {[%clk 0:02:21.9]} 14... Na5 {[%clk 0:02:01.6]} 15. Qf4
{[%clk 0:01:22.7]} 15... Nb3 {[%clk 0:01:55.7]} 16. Ra2 {[%clk 0:01:21.5]} 16...
c6 {[%clk 0:01:22.2]} 17. Bxf6 {[%clk 0:01:19.9]} 17... Bxf6 {[%clk 0:01:20.9]}
18. Ne5 {[%clk 0:01:17.7]} 18... Bc2 {[%clk 0:01:19.9]} 19. Rf1 {[%clk
0:01:12.2]} 19... Nxd4 {[%clk 0:01:13]} 20. b4 {[%clk 0:01:05]} 20... Bg5 {[%clk
0:00:52.3]} 21. Qg4 {[%clk 0:00:53.1]} 21... Bf5 {[%clk 0:00:50.9]} 22. Qh5
{[%clk 0:00:52.8]} 22... g6 {[%clk 0:00:49.1]} 0-1

[Event "*** Titled Tuesday Blitz"]
[Site "Chess.com"]
[Date "2020.10.20"]
[Round "1"]
[White "chesstrainer2042"]
[Black "Firouzja2003"]
[Result "0-1"]
[WhiteElo "2451"]
[BlackElo "3002"]
[TimeControl "180+1"]
[EndTime "10:05:29 PDT"]
[Termination "Firouzja2003 won by checkmate"]

1. e4 {[%clk 0:03:00.9]} 1... e5 {[%clk 0:02:58.2]} 2. Nf3 {[%clk 0:03:01]} 2...
Nc6 {[%clk 0:02:58.3]} 3. Bc4 {[%clk 0:03:01.6]} 3... Nf6 {[%clk 0:02:55.9]} 4.
d3 {[%clk 0:03:01.6]} 4... Bc5 {[%clk 0:02:53.7]} 5. c3 {[%clk 0:02:59.9]} 5...
O-O {[%clk 0:02:52.2]} 6. O-O {[%clk 0:02:59.8]} 6... d6 {[%clk 0:02:51.9]} 7.
a4 {[%clk 0:02:58.6]} 7... a6 {[%clk 0:02:48.3]} 8. h3 {[%clk 0:02:58.6]} 8...
Ba7 {[%clk 0:02:48.3]} 9. Nbd2 {[%clk 0:02:58.5]} 9... Ne7 {[%clk 0:02:48]} 10.
Re1 {[%clk 0:02:56.8]} 10... Ng6 {[%clk 0:02:48.3]} 11. Nf1 {[%clk 0:02:56.9]}
11... Re8 {[%clk 0:02:47.4]} 12. Ng3 {[%clk 0:02:54.7]} 12... Be6 {[%clk
0:02:47.5]} 13. Bxe6 {[%clk 0:02:50.2]} 13... Rxe6 {[%clk 0:02:48.4]} 14. Qb3
{[%clk 0:02:45.5]} 14... Nd7 {[%clk 0:02:25.7]} 15. d4 {[%clk 0:02:32.3]} 15...
h6 {[%clk 0:02:00.3]} 16. Be3 {[%clk 0:02:31.7]} 16... Qc8 {[%clk 0:01:50.2]}
17. Nf5 {[%clk 0:02:14.4]} 17... Nf6 {[%clk 0:01:45.1]} 18. Ng3 {[%clk
0:01:52.4]} 18... exd4 {[%clk 0:01:33.8]} 19. Nxd4 {[%clk 0:01:44]} 19... Re8
{[%clk 0:01:31]} 20. Qc2 {[%clk 0:01:39.9]} 20... Qd7 {[%clk 0:01:28]} 21. Ndf5
{[%clk 0:01:38.3]} 21... Bxe3 {[%clk 0:01:26.9]} 22. Rxe3 {[%clk 0:01:37.3]}
22... Re5 {[%clk 0:01:25.8]} 23. Qb3 {[%clk 0:01:26.7]} 23... b6 {[%clk
0:01:19.4]} 24. Nd4 {[%clk 0:01:13.6]} 24... Rae8 {[%clk 0:01:18.4]} 25. Rae1
{[%clk 0:01:12.7]} 25... Nf4 {[%clk 0:01:13]} 26. Nf3 {[%clk 0:01:09.8]} 26...
R5e6 {[%clk 0:01:09.4]} 27. Nd4 {[%clk 0:00:51]} 27... Re5 {[%clk 0:01:09.3]}
28. Nf3 {[%clk 0:00:51]} 28... Ra5 {[%clk 0:01:09.5]} 29. e5 {[%clk 0:00:50.6]}
29... dxe5 {[%clk 0:01:10.4]} 30. Nxe5 {[%clk 0:00:49.8]} 30... Qd5 {[%clk
0:01:10.2]} 31. c4 {[%clk 0:00:48.7]} 31... Qxg2# {[%clk 0:01:10.1]} 0-1

[Event "*** Titled Tuesday Blitz"]
[Site "Chess.com"]
[Date "2020.10.20"]
[Round "1"]
[White "Shubinkirill2003"]
[Black "garfield_pg"]
[Result "1-0"]
[WhiteElo "2645"]
[BlackElo "2307"]
[TimeControl "180+1"]
[EndTime "10:05:29 PDT"]
[Termination "Shubinkirill2003 won by checkmate"]

1. e4 {[%clk 0:03:00.9]} 1... c5 {[%clk 0:03:00]} 2. Nf3 {[%clk 0:03:00.4]} 2...
a6 {[%clk 0:02:59.7]} 3. c3 {[%clk 0:02:58.3]} 3... Nc6 {[%clk 0:02:57.8]} 4. d4
{[%clk 0:02:57.3]} 4... d6 {[%clk 0:02:57.9]} 5. dxc5 {[%clk 0:02:48.7]} 5...
Nf6 {[%clk 0:02:57.7]} 6. cxd6 {[%clk 0:02:44.9]} 6... Nxe4 {[%clk 0:02:57.9]}
7. Bd3 {[%clk 0:02:40.7]} 7... Nxd6 {[%clk 0:02:57.2]} 8. O-O {[%clk 0:02:39.1]}
8... Bg4 {[%clk 0:02:57.2]} 9. h3 {[%clk 0:02:34.6]} 9... Bxf3 {[%clk
0:02:55.1]} 10. Qxf3 {[%clk 0:02:34.6]} 10... Ne5 {[%clk 0:02:55.6]} 11. Qe2
{[%clk 0:02:32.6]} 11... Nxd3 {[%clk 0:02:55.9]} 12. Qxd3 {[%clk 0:02:33.5]}
12... e6 {[%clk 0:02:56.5]} 13. Rd1 {[%clk 0:02:28.1]} 13... Qc8 {[%clk
0:02:55.2]} 14. Bf4 {[%clk 0:02:26.5]} 14... Nf5 {[%clk 0:02:44.9]} 15. Nd2
{[%clk 0:02:19.7]} 15... Be7 {[%clk 0:02:43.9]} 16. g4 {[%clk 0:02:10.7]} 16...
Nh4 {[%clk 0:02:43.6]} 17. Ne4 {[%clk 0:01:56.9]} 17... O-O {[%clk 0:02:42.1]}
18. Qg3 {[%clk 0:01:54.3]} 18... Qc6 {[%clk 0:02:41.4]} 19. Re1 {[%clk
0:01:42.1]} 19... f5 {[%clk 0:02:24.1]} 20. gxf5 {[%clk 0:01:31]} 20... exf5
{[%clk 0:02:25]} 21. Nd2 {[%clk 0:01:30.7]} 21... Ng6 {[%clk 0:02:16.1]} 22. Bg5
{[%clk 0:01:16.8]} 22... f4 {[%clk 0:02:06]} 23. Qg4 {[%clk 0:01:16.4]} 23...
Bxg5 {[%clk 0:01:39.4]} 24. Qxg5 {[%clk 0:01:17.3]} 24... h6 {[%clk 0:01:38.7]}
25. Qg4 {[%clk 0:01:15.5]} 25... Rad8 {[%clk 0:01:28.1]} 26. Re6 {[%clk
0:01:12.3]} 26... Qd7 {[%clk 0:01:17.8]} 27. Qxg6 {[%clk 0:00:51.5]} 27... Qxd2
{[%clk 0:01:15.9]} 28. Re7 {[%clk 0:00:51.3]} 28... Qxb2 {[%clk 0:00:57.1]} 29.
Qxg7# {[%clk 0:00:49.9]} 1-0